[Event "GEO-ch U20 Girls 2020"]
[Site "Tbilisi"]
[Date "2020.08.13"]
[Round "8.11"]
[White "Mgeladze, Kesaria"]
[Black "Antia, Sopia"]
[Result "0-1"]
[ECO "B22"]
[WhiteElo "1215"]
[BlackElo "1653"]
[Annotator "NA RC"]
[PlyCount "144"]
[EventDate "2020.08.06"]
[EventType "tourn"]
[EventCountry "GEO"]
[SourceTitle "playchess.com"]
[Source "ChessBase"]
[SourceQuality "1"]
[TimeControl "40/5400+30:1800+30"]

1. e4 {[%emt 0:00:00]} c5 {[%emt 0:00:00]} 2. c3 {[%emt 0:00:00]} e6 {[%emt 0:00:09]} 3. d4 {[%emt 0:00:00]} d5 {[%emt 0:00:12]} 4. exd5 {[%emt 0:00:00]} exd5 {[%emt 0:00:06]} 5. Nf3 {[%emt 0:00:00]} Nc6 {[%emt 0:00:04]} 6. Be3 {[%emt 0:00:00]} Qb6 {[%emt 0:03:18]} 7. Qb3 {[%emt 0:11:17]} c4 {[%emt 0:00:28]} 8. Qxb6 {[%emt 0:02:12]} axb6 {[%emt 0:00:04]} 9. g3 {[%emt 0:02:29]} Bf5 {[%emt 0:01:45]} 10. Nbd2 {[%emt 0:02:26]} b5 {[%emt 0:01:48]} 11. Ne5 {[%emt 0:04:59]} b4 {[%emt 0:03:29]} 12. Bg2 {[%emt 0:00:58]} bxc3 {[%emt 0:01:16]} 13. bxc3 {[%emt 0:00:11]} f6 {[%emt 0:01:56]} 14. Nxc6 {[%emt 0:00:39]} bxc6 {[%emt 0:00:04]} 15. Nxc4 {[%emt 0:00:11]} Ra6 {[%emt 0:08:36]} 16. Nd2 {[%emt 0:15:25]} Ba3 {[%emt 0:00:10]} 17. Nb3 {[%emt 0:08:48]} Bb2 {[%emt 0:04:12]} 18. Kd2 {[%emt 0:02:49]} Bxa1 {[%emt 0:00:39]} 19. Rxa1 {[%emt 0:00:05]} Ne7 {[%emt 0:01:13]} 20. a4 {[%emt 0:00:06]} O-O {[%emt 0:01:55]} 21. Bf1 {[%emt 0:00:36]} Rb6 {[%emt 0:00:28]} 22. Nc5 {[%emt 0:06:34]} Rb2+ {[%emt 0:00:45]} 23. Kd1 {[%emt 0:00:08]} Rfb8 {[%emt 0:01:02]} 24. a5 {[%emt 0:06:41]} Rb1+ {[%emt 0:00:59]} 25. Rxb1 {[%emt 0:00:09]} Rxb1+ {[%emt 0:00:05]} 26. Bc1 {[%emt 0:00:20]} Nc8 {[%emt 0:02:10]} 27. Ba6 {[%emt 0:03:23]} Na7 {[%emt 0:00:49]} 28. Bb7 {[%emt 0:00:07]} Kf7 {[%emt 0:05:37]} 29. a6 {[%emt 0:00:16]} Ke8 {[%emt 0:01:10]} 30. Kd2 {[%emt 0:00:26]} Kd8 {[%emt 0:01:04]} 31. Ba3 {[%emt 0:00:18]} Ra1 {[%emt 0:04:41]} 32. Bb4 {[%emt 0:00:15]} Bc8 {[%emt 0:01:12]} 33. Nb3 {[%emt 0:02:03]} Ra2+ {[%emt 0:00:05]} 34. Ke3 {[%emt 0:00:22]} Kc7 {[%emt 0:04:40]} 35. Na5 {[%emt 0:02:53]} Bh3 {[%emt 0:03:59]} 36. Nb3 {[%emt 0:04:57]} Bf1 {[%emt 0:08:12]} 37. Nc5 {[%emt 0:00:28]} Kb6 {[%emt 0:09:13]} 38. Nd7+ {[%emt 0:01:53]} Kc7 {[%emt 0:01:37]} 39. Nc5 {[%emt 0:00:09]} Bh3 {[%emt 0:00:25]} 40. Nb3 {[%emt 0:00:35]} Nc8 {[%emt 0:04:03]} 41. Na5 {[%emt 0:32:43]} Bd7 {[%emt 0:35:29]} 42. Nb3 {[%emt 0:08:29]} Nb6 {[%emt 0:02:42]} 43. Ba5 {[%emt 0:04:13]} Ra3 {[%emt 0:01:32]} 44. Bxb6+ {[%emt 0:00:08]} Kxb6 {[%emt 0:00:05]} 45. Nc5 {[%emt 0:00:17]} Bh3 {[%emt 0:01:52]} 46. Ke2 {[%emt 0:00:53]} Kc7 {[%emt 0:01:05]} 47. Kd3 {[%emt 0:01:43]} Bc8 {[%emt 0:02:32]} 48. Kd2 {[%emt 0:00:55]} Ra2+ {[%emt 0:00:53]} 49. Ke3 {[%emt 0:00:11]} Bxb7 {[%emt 0:00:19]} 50. axb7 {[%emt 0:00:32]} Rc2 {[%emt 0:00:15]} 51. Ne6+ {[%emt 0:00:56]} Kxb7 {[%emt 0:00:16]} 52. Nxg7 {[%emt 0:00:04]} Rxc3+ {[%emt 0:00:13]} 53. Kd2 {[%emt 0:00:13]} Rc4 {[%emt 0:01:53]} 54. Kd3 {[%emt 0:00:11]} c5 {[%emt 0:01:36]} 55. dxc5 {[%emt 0:00:28]} Rxc5 {[%emt 0:00:32]} 56. Ne6 {[%emt 0:01:48]} Rc1 {[%emt 0:00:41]} 57. Nf4 {[%emt 0:00:45]} Kc6 {[%emt 0:01:09]} 58. Nh5 {[%emt 0:00:19]} f5 {[%emt 0:00:42]} 59. h4 {[%emt 0:01:05]} Kd6 {[%emt 0:01:06]} 60. Nf6 {[%emt 0:00:05]} h6 {[%emt 0:03:18]} 61. Ng8 {[%emt 0:00:07]} Ke5 {[%emt 0:00:34]} 62. Nxh6 {[%emt 0:01:16]} Rc7 {[%emt 0:00:06]} 63. g4 {[%emt 0:00:50]} Rc4 {[%emt 0:02:07]} 64. f3 {[%emt 0:02:04]} Rf4 {[%emt 0:04:54]} 65. Nxf5 {[%emt 0:03:28]} Rxf3+ {[%emt 0:00:04]} 66. Ke2 {[%emt 0:00:09]} Rf4 {[%emt 0:00:22]} 67. Nh6 {[%emt 0:00:25]} Kf6 {[%emt 0:00:14]} 68. Ke3 {[%emt 0:00:38]} Ra4 {[%emt 0:00:42]} 69. Ng8+ {[%emt 0:00:49]} Kg7 {[%emt 0:00:20]} 70. Ne7 {[%emt 0:00:20]} Re4+ {[%emt 0:00:05]} 71. Kd3 {[%emt 0:00:19]} Rxe7 {[%emt 0:00:05]} 72. Kd4 {[%emt 0:00:04]} Re4+ {[%emt 0:00:07]} 0-1

[Event "GEO-ch U20 Girls 2020"]
[Site "Tbilisi"]
[Date "2020.08.13"]
[Round "8.12"]
[White "Bechvaia, Maia"]
[Black "Tsetskhladze, Mariam"]
[Result "1/2-1/2"]
[ECO "C41"]
[WhiteElo "1597"]
[BlackElo "1397"]
[Annotator "NA RC"]
[PlyCount "70"]
[EventDate "2020.08.06"]
[EventType "tourn"]
[EventCountry "GEO"]
[SourceTitle "playchess.com"]
[Source "ChessBase"]
[SourceQuality "1"]
[TimeControl "40/5400+30:1800+30"]

1. e4 {[%emt 0:06:11]} e5 {[%emt 0:01:45]} 2. Nf3 {[%emt 0:00:25]} d6 {[%emt 0:00:06]} 3. d4 {[%emt 0:00:29]} exd4 {[%emt 0:00:07]} 4. Nxd4 {[%emt 0:00:04]} Nf6 {[%emt 0:00:06]} 5. Nc3 {[%emt 0:00:07]} Be7 {[%emt 0:00:05]} 6. Bc4 {[%emt 0:09:34]} O-O {[%emt 0:00:10]} 7. O-O {[%emt 0:00:05]} a6 {[%emt 0:00:05]} 8. Qf3 {[%emt 0:14:44]} c6 {[%emt 0:15:52]} 9. Bb3 {[%emt 0:09:33]} b5 {[%emt 0:05:16]} 10. Bf4 {[%emt 0:02:15]} Bg4 {[%emt 0:02:36]} 11. Qg3 {[%emt 0:00:11]} Bc8 {[%emt 0:10:00]} 12. Qd3 {[%emt 0:23:23]} c5 {[%emt 0:06:17]} 13. Ndxb5 {[%emt 0:01:33]} axb5 {[%emt 0:03:14]} 14. Nxb5 {[%emt 0:00:04]} Bb7 {[%emt 0:09:00]} 15. Rfe1 {[%emt 0:00:47]} d5 {[%emt 0:04:35]} 16. exd5 {[%emt 0:04:05]} Bxd5 {[%emt 0:02:10]} 17. Nc7 {[%emt 0:05:54]} Bxb3 {[%emt 0:02:08]} 18. Nxa8 {[%emt 0:00:47]} Qxd3 {[%emt 0:03:48]} 19. cxd3 {[%emt 0:00:05]} Be6 {[%emt 0:00:18]} 20. Nc7 {[%emt 0:00:20]} Nh5 {[%emt 0:01:47]} 21. Nxe6 {[%emt 0:01:03]} fxe6 {[%emt 0:00:28]} 22. Be5 {[%emt 0:02:26]} Nd7 {[%emt 0:03:32]} 23. Bc3 {[%emt 0:00:11]} Nf4 {[%emt 0:01:49]} 24. Rad1 {[%emt 0:00:28]} Kf7 {[%emt 0:01:08]} 25. d4 {[%emt 0:02:00]} Nd5 {[%emt 0:02:07]} 26. dxc5 {[%emt 0:02:44]} Nxc5 {[%emt 0:03:24]} 27. Bd4 {[%emt 0:00:25]} Rb8 {[%emt 0:01:10]} 28. f4 {[%emt 0:03:09]} Bd6 {[%emt 0:04:40]} 29. g3 {[%emt 0:00:37]} g6 {[%emt 0:02:14]} 30. Re2 {[%emt 0:01:08]} Ke7 {[%emt 0:02:34]} 31. Kh1 {[%emt 0:00:48]} Kd7 {[%emt 0:00:35]} 32. Rc2 {[%emt 0:00:59]} Rb5 {[%emt 0:02:04]} 33. a3 {[%emt 0:00:46]} Nb3 {[%emt 0:01:01]} 34. Bf2 {[%emt 0:00:07]} Rb8 {[%emt 0:01:20]} 35. Kg2 {[%emt 0:01:04]} Rb7 {[%emt 0:01:37]} 1/2-1/2

[Event "GEO-ch U20 Girls 2020"]
[Site "Tbilisi"]
[Date "2020.08.14"]
[Round "9.10"]
[White "Esadze, Tamari"]
[Black "Antia, Sopia"]
[Result "1-0"]
[ECO "B41"]
[WhiteElo "1882"]
[BlackElo "1653"]
[Annotator "NA RC"]
[PlyCount "54"]
[EventDate "2020.08.06"]
[EventType "tourn"]
[EventCountry "GEO"]
[SourceTitle "playchess.com"]
[Source "ChessBase"]
[SourceQuality "1"]
[TimeControl "40/5400+30:1800+30"]

{[%evp 8,53,32,16,21,36,27,14,80,29,112,123,124,117,108,68,336,130,32767,32767,32767,32767,32767,32767,32767,32767,32767,32767,32767,32767,32767,193,204,204,220,232,266,241,248,260,288,318,341,375,364,401,533,545]} 1. e4 {[%emt 0:00:00]} c5 {[%emt 0:00:00]} 2. Nf3 {[%emt 0:00:00]} e6 {[%emt 0:00:00]} 3. d4 {[%emt 0:00:00]} cxd4 {[%emt 0:00:00]} 4. Nxd4 {[%emt 0:00:00]} a6 {[%emt 0:00:00]} 5. c4 {[%emt 0:00:00]} Nf6 {[%emt 0:00:08]} 6. Nc3 {[%emt 0:00:00]} Bb4 {[%emt 0:00:03]} 7. Bd3 {[%emt 0:01:51]} O-O {[%emt 0:04:48] B41: Sicilian: Kan Variation: 5 c4.} (7... Qc7 $11) 8. O-O {[%emt 0:04:13]} (8. e5 $5 {[%cal Re5f6]} Ne8 9. Nf3 $14) 8... d5 {[%emt 0:01:06]} (8... Bxc3 $11 9. bxc3 e5) 9. cxd5 {[%emt 0:04:58]} exd5 {[%emt 0:00:42]} 10. e5 {[%emt 0:00:17]} Ng4 {[%emt 0:10:03] [#]} 11. e6 $146 {[%emt 0:12:41]} ({Predecessor:} 11. Nf3 Bxc3 12. bxc3 Nc6 13. h3 Ngxe5 14. Nxe5 Nxe5 15. Bxh7+ Kxh7 16. Qh5+ Kg8 17. Qxe5 {1-0 (66) Jopek,E (1927)-Klein,G (1803) Germany 2012}) 11... Qh4 $2 {[%emt 0:05:15] [#]} (11... Ne5 $14) 12. h3 {[%emt 0:10:29]} (12. Nf3 $1 $18 {is the precise move to win.} Qh5 {[#]} 13. Nxd5 $1 {[%mdl 512]}) 12... Bc5 {[%emt 0:28:12]} 13. Qxg4 {[%emt 0:08:42]} Qxg4 {[%emt 0:00:13]} 14. hxg4 {[%emt 0:00:02]} Bxd4 {[%emt 0:00:13]} 15. e7 {[%emt 0:00:03]} Re8 {[%emt 0:00:45]} 16. Nxd5 {[%emt 0:00:04]} Be5 {[%emt 0:02:13]} 17. Nb6 {[%emt 0:03:25]} Ra7 {[%emt 0:03:35]} 18. Be3 {[%emt 0:15:51]} Be6 {[%emt 0:00:06]} 19. Nd7 {[%emt 0:01:19]} Nxd7 {[%emt 0:04:17]} 20. Bxa7 {[%emt 0:00:04]} Rxe7 {[%emt 0:06:17]} 21. f4 {[%emt 0:03:11]} Bxb2 {[%emt 0:01:00]} 22. Rab1 {[%emt 0:00:16]} Ba3 {[%emt 0:02:31]} 23. Rxb7 {[%emt 0:00:39]} Bxg4 {[%emt 0:01:49]} 24. Bxa6 {[%emt 0:01:23]} Kf8 {[%emt 0:01:59]} 25. Bb5 {[%emt 0:01:32]} g6 {[%emt 0:00:26]} 26. Bd4 {[%emt 0:03:04]} Re4 {[%emt 0:05:56]} 27. Bxd7 $18 {[%emt 0:00:47]} Rxd4 {[%emt 0:01:55]} 1-0